bitfinex/quotes_BTCUSD_20240718
["timestamp","ask_amount","ask_price","bid_price","bid_amount"]
[1721304264465,0.003528,64889.0,64888.0,2.18352968]
[1721304264701,0.003528,64889.0,64888.0,2.13352968]
[1721304264924,0.003528,64889.0,64888.0,2.1792019]
[1721304265393,0.003528,64889.0,64888.0,2.16441968]
[1721304265623,0.003528,64889.0,64888.0,2.15741968]
[1721304265918,0.003528,64889.0,64888.0,1.86019668]
[1721304267243,0.003528,64889.0,64888.0,1.84719668]
[1721304267448,0.004528,64889.0,64888.0,1.86819668]
[1721304267684,0.003528,64889.0,64888.0,1.86119668]
[1721304268152,0.003528,64889.0,64888.0,1.87519668]
[1721304268428,0.003528,64889.0,64888.0,1.98913532]
[1721304268646,0.003528,64889.0,64888.0,2.00313532]
[1721304269561,0.003528,64889.0,64888.0,2.31135832]
[1721304270027,0.003528,64889.0,64888.0,2.29735832]
[1721304270248,0.003528,64889.0,64888.0,2.31135832]
[1721304270692,0.003528,64889.0,64888.0,2.29735832]
[1721304270965,0.003528,64889.0,64888.0,2.28335832]
[1721304271163,0.003528,64889.0,64888.0,2.29735832]
[1721304271376,0.003528,64889.0,64888.0,2.31135832]
[1721304272539,0.003528,64889.0,64888.0,2.31135086]
[1721304272767,0.003528,64889.0,64888.0,2.29735086]
[1721304272991,0.003528,64889.0,64888.0,2.16941968]
[1721304273250,0.003528,64889.0,64888.0,2.28335086]
[1721304273718,0.003528,64889.0,64888.0,2.29735086]
[1721304274373,0.003528,64889.0,64888.0,2.31135086]
[1721304274816,0.003528,64889.0,64888.0,2.00312786]
[1721304275083,0.003528,64889.0,64888.0,1.97223786]
[1721304275747,0.003528,64889.0,64888.0,1.98058786]
[1721304276085,0.003528,64889.0,64888.0,1.98059863]
[1721304276256,0.003528,64889.0,64888.0,1.96659863]
[1721304276484,0.003528,64889.0,64888.0,1.98059863]
[1721304276941,0.003528,64889.0,64888.0,1.96659863]
[1721304277171,0.003528,64889.0,64888.0,1.95259863]
[1721304277417,0.003528,64889.0,64888.0,1.96659863]
[1721304278481,0.003528,64889.0,64888.0,1.98059863]
[1721304278719,0.003528,64889.0,64888.0,2.03339263]
[1721304278937,0.003528,64889.0,64888.0,1.96659863]
[1721304279153,0.004528,64889.0,64888.0,3.78881234]
[1721304281423,0.004528,64889.0,64888.0,3.48058934]
[1721304281665,0.004528,64889.0,64888.0,1.98058934]
[1721304282097,0.004528,64889.0,64888.0,1.85265668]
[1721304282314,0.004528,64889.0,64888.0,1.98059201]
[1721304282570,0.004528,64889.0,64888.0,1.98059387]
[1721304282994,0.004528,64889.0,64888.0,1.95759387]
[1721304283227,0.004528,64889.0,64888.0,1.95759814]
[1721304284355,0.004528,64889.0,64888.0,1.98059814]
[1721304285485,0.004528,64889.0,64888.0,1.85265668]
[1721304285723,0.004528,64889.0,64888.0,1.8384988]
[1721304288896,0.004528,64889.0,64888.0,1.9047988]
[1721304289149,0.004528,64889.0,64888.0,1.9800988]
[1721304289841,0.004528,64889.0,64888.0,1.9828928]
[1721304290061,0.004528,64889.0,64888.0,1.9800988]
[1721304290295,0.004528,64889.0,64888.0,2.2883218]
[1721304290797,0.004528,64889.0,64888.0,2.3383218]
[1721304291042,0.004528,64889.0,64888.0,2.2883218]
[1721304292045,0.00835,64898.0,64888.0,2.2883218]
[1721304292046,0.00835,64898.0,64897.0,1.38681]
[1721304292283,0.00835,64898.0,64897.0,2.36646174]
[1721304292518,0.00835,64898.0,64897.0,2.14529348]
[1721304292984,0.00835,64898.0,64897.0,2.14531494]
[1721304293424,0.00835,64898.0,64897.0,2.15331494]
[1721304294101,0.00835,64898.0,64897.0,2.16700432]
[1721304294790,0.00835,64898.0,64897.0,2.15900432]
[1721304295016,0.00835,64898.0,64897.0,2.17300525]
[1721304295477,0.00835,64898.0,64897.0,2.14500525]
[1721304295718,0.00835,64898.0,64897.0,2.15900525]
[1721304295946,0.00835,64898.0,64897.0,2.17300525]
[1721304296169,0.00835,64898.0,64897.0,2.18700525]
[1721304296441,0.00835,64898.0,64897.0,2.04508629]
[1721304296665,0.00835,64898.0,64897.0,2.15900525]
[1721304297176,0.00835,64898.0,64897.0,2.14500525]
[1721304297400,0.00835,64898.0,64897.0,2.14484399]
[1721304297624,0.00835,64898.0,64897.0,2.15869999]
[1721304297843,0.00835,64898.0,64897.0,2.17269999]
[1721304298337,0.00835,64898.0,64897.0,2.04478103]
[1721304298543,0.00835,64898.0,64897.0,2.18669999]
[1721304299004,0.00835,64898.0,64897.0,2.17269999]
[1721304299484,0.00835,64898.0,64897.0,2.18669999]
[1721304300215,0.00835,64898.0,64897.0,2.04869999]
[1721304300474,0.00835,64898.0,64897.0,1.10324999]
[1721304300707,0.00835,64898.0,64897.0,1.10326533]
[1721304300940,0.00835,64898.0,64897.0,0.97533103]
[1721304301415,0.00835,64898.0,64897.0,1.28351103]
[1721304301912,0.00835,64898.0,64897.0,1.25551103]
[1721304302365,0.00835,64898.0,64897.0,1.04733103]
[1721304302367,0.00835,64898.0,64897.0,0.58476929]
[1721304302631,0.00835,64898.0,64897.0,0.59876929]
[1721304303315,0.00835,64898.0,64897.0,0.58476929]
[1721304303578,0.00835,64898.0,64897.0,0.17658929]
[1721304303579,0.13395,64898.0,64897.0,0.17658929]
[1721304303814,0.13395,64898.0,64897.0,0.49876929]
[1721304305197,0.13395,64898.0,64897.0,0.03711517]
[1721304305198,0.288037,64898.0,64897.0,0.03711517]
[1721304305444,0.596212,64898.0,64897.0,0.03711517]
[1721304305653,0.596212,64898.0,64897.0,0.028]
[1721304305654,0.904387,64898.0,64897.0,0.028]
[1721304306325,1.30870122,64898.0,64897.0,0.028]
[1721304306552,1.30870122,64898.0,64888.0,0.00060238]
[1721304306553,0.154109,64889.0,64888.0,0.00060238]
[1721304306790,0.283209,64889.0,64888.0,0.00927685]
[1721304307018,0.283209,64889.0,64888.0,0.00060238]
[1721304307733,0.283209,64889.0,64888.0,0.00927685]
[1721304307957,0.283209,64889.0,64888.0,0.00060238]
[1721304308838,0.283209,64889.0,64888.0,0.00927685]
[1721304309045,0.283209,64889.0,64888.0,0.00060238]
[1721304309286,0.284209,64889.0,64888.0,0.00927685]
[1721304309507,0.284209,64889.0,64888.0,0.00060238]
[1721304309727,0.284209,64889.0,64888.0,0.00927685]
[1721304309728,0.9907073,64889.0,64888.0,0.00927685]
[1721304309960,1.2999253,64889.0,64888.0,0.00060238]
[1721304310628,1.2989253,64889.0,64888.0,0.00060238]
[1721304311325,1.207863,64889.0,64888.0,0.00060238]
[1721304311551,0.283209,64889.0,64888.0,0.00060238]
[1721304311981,0.283209,64889.0,64888.0,0.00925168]
[1721304313447,0.592427,64889.0,64888.0,0.00925168]
[1721304313648,0.1301,64889.0,64888.0,0.00925168]
[1721304313855,0.1301,64889.0,64888.0,0.00060238]
[1721304314072,0.284209,64889.0,64888.0,0.00928185]
[1721304314277,0.1301,64889.0,64888.0,0.00060238]
[1721304314487,0.001,64889.0,64888.0,0.47261585]
[1721304314700,0.001,64889.0,64888.0,0.46393638]
[1721304314906,0.001,64889.0,64888.0,0.77115938]
[1721304315117,0.0652,64893.0,64892.0,0.154102]
[1721304315548,0.0652,64893.0,64892.0,0.16277731]
[1721304317666,0.0652,64893.0,64892.0,0.16377731]
[1721304318116,0.0656,64894.0,64893.0,0.154099]
[1721304318549,0.0656,64894.0,64893.0,0.16277317]
[1721304319006,0.0656,64894.0,64893.0,0.00867417]
[1721304320143,0.0656,64894.0,64893.0,0.16277317]
[1721304320352,0.0622,64897.0,64894.0,0.154097]
[1721304320796,0.0622,64897.0,64895.0,0.00868392]
[1721304321017,0.21629,64897.0,64895.0,0.00868392]
[1721304321238,0.154098,64894.0,64891.0,0.154104]
[1721304321448,0.154096,64895.0,64891.0,0.154104]
[1721304321658,0.154096,64895.0,64894.0,0.001]
[1721304321874,0.154096,64895.0,64891.0,0.154103]
[1721304322516,0.30819,64895.0,64890.0,0.154106]
[1721304322708,0.23726498,64895.0,64891.0,0.154103]
[1721304322972,0.154095,64895.0,64891.0,0.154103]
[1721304323189,0.154097,64894.0,64890.0,0.154106]
[1721304323404,0.155095,64895.0,64891.0,0.154103]
[1721304323634,0.001,64895.0,64890.0,0.308213]
[1721304323855,0.21629,64897.0,64893.0,0.154097]
[1721304324330,0.21712,64897.0,64893.0,0.154097]
[1721304325925,0.15492,64897.0,64896.0,0.46304871]
[1721304326148,0.15492,64897.0,64896.0,1.47182874]
[1721304326149,0.00083,64897.0,64896.0,1.47182874]
[1721304326374,0.00083,64897.0,64896.0,1.49482874]
[1721304326591,0.00283,64897.0,64896.0,1.80301374]
[1721304327247,0.00083,64897.0,64896.0,1.80301374]
[1721304327772,0.00083,64897.0,64896.0,1.81701374]
[1721304328882,0.00083,64897.0,64896.0,1.82525278]
[1721304329104,0.00083,64897.0,64896.0,1.51706778]
[1721304329575,0.00083,64897.0,64896.0,1.52906778]
[1721304329826,0.00083,64897.0,64896.0,1.50606778]
[1721304331478,0.00083,64897.0,64896.0,1.50828031]
[1721304331895,0.00083,64897.0,64896.0,1.53128031]
[1721304333199,0.00083,64897.0,64896.0,1.83946531]
[1721304337121,0.00083,64897.0,64896.0,1.84781531]
[1721304338993,0.00083,64897.0,64896.0,2.15600031]
[1721304339220,0.00083,64897.0,64896.0,2.28392428]
[1721304339442,0.00083,64897.0,64896.0,2.33392428]
[1721304339897,0.00083,64897.0,64896.0,2.31992428]
[1721304340108,0.00083,64897.0,64896.0,2.33392428]
[1721304340339,0.00083,64897.0,64896.0,2.32192428]
[1721304340789,0.00083,64897.0,64896.0,2.27192428]
[1721304341044,0.00083,64897.0,64896.0,2.28592428]
[1721304341703,0.00083,64897.0,64896.0,2.28591267]
[1721304341972,0.00083,64897.0,64896.0,2.33591267]
[1721304342876,0.00083,64897.0,64896.0,2.28591267]
[1721304343332,0.00083,64897.0,64896.0,1.97772767]
[1721304345005,0.00083,64897.0,64896.0,1.97773735]
[1721304346106,0.00083,64897.0,64896.0,1.35483031]
[1721304346549,0.00083,64897.0,64896.0,1.12544857]
[1721304346775,0.00083,64897.0,64896.0,0.80891357]
[1721304348165,0.15492,64897.0,64896.0,0.03845157]
[1721304348395,0.4631,64897.0,64896.0,0.03845157]
[1721304348614,0.4631,64897.0,64896.0,0.028]
[1721304348615,0.21742,64897.0,64896.0,0.028]
[1721304349058,0.21742,64897.0,64896.0,0.01044565]
[1721304349287,0.21742,64897.0,64896.0,0.02844565]
[1721304349501,0.21742,64897.0,64896.0,0.011]
[1721304349752,0.21742,64897.0,64896.0,0.02144565]
[1721304349974,0.21742,64897.0,64896.0,0.004]
[1721304350218,0.21742,64897.0,64896.0,0.013]
[1721304350724,0.5256,64897.0,64896.0,0.013]
[1721304351212,0.6471877,64897.0,64896.0,0.013]
[1721304354020,0.9553677,64897.0,64896.0,0.013]
[1721304354945,1.79170944,64897.0,64896.0,0.013]
[1721304355164,1.90885191,64897.0,64896.0,0.013]
[1721304355627,1.95489123,64897.0,64896.0,0.013]
[1721304355871,1.95489942,64897.0,64896.0,0.013]
[1721304356346,1.95489942,64897.0,64896.0,0.009]
[1721304356591,1.85750674,64897.0,64896.0,0.003]
[1721304356845,1.85650674,64897.0,64896.0,0.003]
[1721304357071,1.85650674,64897.0,64896.0,0.004]
[1721304357072,1.2233573,64897.0,64896.0,0.004]
[1721304357289,1.20736,64897.0,64896.0,0.001]
[1721304358681,1.20736,64897.0,64888.0,0.00060238]
[1721304358682,0.462327,64889.0,64888.0,0.00060238]
[1721304359360,1.206263,64889.0,64888.0,0.00060238]
[1721304360276,1.207263,64889.0,64888.0,0.00060238]
[1721304360735,1.206263,64889.0,64888.0,0.00060238]
[1721304362152,1.206263,64889.0,64888.0,0.00160238]
[1721304362357,1.3328893,64889.0,64888.0,0.00160238]
[1721304362831,1.3328893,64889.0,64888.0,0.00060238]
[1721304362832,1.3338893,64889.0,64888.0,0.00060238]
[1721304363284,1.3318893,64889.0,64888.0,0.00060238]
[1721304363540,1.3348893,64889.0,64888.0,0.00160238]
[1721304363986,1.3328893,64889.0,64888.0,0.00160238]
[1721304365329,1.3318893,64889.0,64888.0,0.00060238]
[1721304365760,1.3348893,64889.0,64888.0,0.00160238]
[1721304365970,1.209263,64889.0,64888.0,0.00160238]
[1721304366195,1.081763,64889.0,64888.0,0.00160238]
[1721304366678,1.079763,64889.0,64888.0,0.00160238]
[1721304366895,1.079763,64889.0,64888.0,0.00260238]
[1721304366896,0.465327,64889.0,64888.0,0.00260238]
[1721304367369,0.465327,64889.0,64888.0,0.00160238]
[1721304367590,0.771545,64889.0,64888.0,0.01209738]
[1721304367806,0.771545,64889.0,64888.0,0.00160238]
[1721304368045,0.771545,64889.0,64888.0,0.01209738]
[1721304368491,0.88052,64889.0,64888.0,0.01309738]
[1721304368740,0.87852,64889.0,64888.0,0.01109738]
[1721304368964,0.88052,64889.0,64888.0,0.00060238]
[1721304369182,0.88152,64889.0,64888.0,0.00060238]
[1721304369407,1.303338,64889.0,64888.0,0.00060238]
[1721304369629,1.369038,64889.0,64888.0,0.00060238]
[1721304369850,1.319038,64889.0,64888.0,0.00060238]
[1721304371016,1.369038,64889.0,64888.0,0.00060238]
[1721304371721,1.319038,64889.0,64888.0,0.00060238]
[1721304372375,1.369038,64889.0,64888.0,0.00060238]
[1721304372605,1.319038,64889.0,64888.0,0.00060238]
[1721304373042,1.369038,64889.0,64888.0,0.00060238]
[1721304373269,1.319038,64889.0,64888.0,0.00060238]
[1721304374002,1.145463,64889.0,64888.0,0.00060238]
[1721304374467,1.079763,64889.0,64888.0,0.00060238]
[1721304374714,0.771545,64889.0,64888.0,0.00060238]
[1721304375418,1.0957621,64889.0,64888.0,0.00060238]
[1721304375879,0.771545,64889.0,64888.0,0.00060238]
[1721304376556,1.079763,64889.0,64888.0,0.00060238]
[1721304376991,0.8845213,64889.0,64888.0,0.00060238]
[1721304378532,0.90051947,64889.0,64888.0,0.00060238]
[1721304378827,0.001,64889.0,64888.0,0.00060238]
[1721304379058,0.001,64889.0,64888.0,0.29631338]
[1721304379272,0.001,64889.0,64888.0,0.30680511]
[1721304380178,0.001,64889.0,64888.0,0.61502811]
[1721304380647,0.154097,64894.0,64889.0,0.154108]
[1721304380852,0.01599701,64893.0,64889.0,0.154108]
[1721304381071,0.2345599,64894.0,64890.0,0.01048972]
[1721304381323,0.025,64895.0,64888.0,0.00060238]
[1721304381542,0.063,64893.0,64891.0,0.01048871]
[1721304381792,0.01599724,64892.0,64891.0,0.01048871]
[1721304382010,0.01599724,64892.0,64888.0,0.00660238]
[1721304382011,0.154107,64890.0,64888.0,0.00660238]
[1721304382226,0.154107,64890.0,64888.0,0.00060238]
[1721304382445,0.154107,64890.0,64888.0,0.00160238]
[1721304382867,0.154107,64890.0,64888.0,0.00060238]
[1721304383079,0.154109,64889.0,64888.0,0.00060238]
[1721304383538,0.154109,64889.0,64888.0,0.00460238]
[1721304384913,0.154109,64889.0,64888.0,0.00060238]
[1721304385322,0.154109,64889.0,64888.0,0.00660238]
[1721304385777,0.154109,64889.0,64888.0,0.00060238]
[1721304386014,0.154109,64889.0,64888.0,0.00460238]
[1721304386259,0.154109,64889.0,64888.0,0.01508995]
[1721304386469,0.154109,64889.0,64888.0,0.00460238]
[1721304386916,0.154109,64889.0,64888.0,0.01608995]
[1721304387158,0.154109,64889.0,64888.0,0.00560238]
[1721304387365,0.154109,64889.0,64888.0,0.01508995]
[1721304387581,0.154109,64889.0,64888.0,0.00460238]
[1721304387823,0.154109,64889.0,64888.0,0.01508995]
[1721304388048,0.154109,64889.0,64888.0,0.00460238]
[1721304388496,0.154109,64889.0,64888.0,0.01508995]
[1721304388720,0.154109,64889.0,64888.0,0.00460238]
[1721304388942,0.30821,64891.0,64888.0,0.01508995]
[1721304388943,0.154108,64890.0,64888.0,0.01508995]
[1721304389167,0.154108,64890.0,64888.0,0.00460238]
[1721304389838,0.154108,64890.0,64889.0,0.01048656]
[1721304389839,0.462321,64890.0,64889.0,0.01048656]
[1721304390281,0.463321,64890.0,64889.0,0.01048656]
[1721304391184,0.462321,64890.0,64889.0,0.01048656]
[1721304391416,0.463321,64890.0,64889.0,0.01048656]
[1721304391653,0.5428741,64890.0,64889.0,0.01048656]
[1721304392101,0.463321,64890.0,64889.0,0.01048656]
[1721304393008,0.463321,64890.0,64889.0,0.01348656]
[1721304393248,0.463321,64890.0,64889.0,0.15588656]
[1721304393460,0.463321,64890.0,64889.0,0.1454]
[1721304393681,0.463321,64890.0,64889.0,0.155884]
[1721304395311,0.771534,64890.0,64889.0,0.155884]
[1721304395768,0.771534,64890.0,64889.0,0.1454]
[1721304396429,0.81772739,64890.0,64889.0,0.1454]
[1721304397340,0.81772739,64890.0,64889.0,0.003]
[1721304397811,0.771534,64890.0,64889.0,0.003]
[1721304398066,0.81773585,64890.0,64889.0,0.003]
[1721304398499,0.771534,64890.0,64889.0,0.003]
[1721304398746,0.81773585,64890.0,64889.0,0.003]
[1721304399442,0.84083678,64890.0,64889.0,0.003]
[1721304399810,0.8568345,64890.0,64889.0,0.003]
[1721304400473,0.84083678,64890.0,64889.0,0.003]
[1721304401011,0.84085879,64890.0,64889.0,0.003]
[1721304401229,0.85685638,64890.0,64889.0,0.003]
[1721304403694,1.16506938,64890.0,64889.0,0.003]
[1721304403915,1.09574459,64890.0,64889.0,0.003]
[1721304404381,1.37300854,64890.0,64889.0,0.003]
[1721304404606,1.35929949,64890.0,64889.0,0.003]
[1721304404815,1.52679071,64890.0,64889.0,0.003]
[1721304405026,1.46119071,64890.0,64889.0,0.003]
[1721304405233,1.39619209,64890.0,64889.0,0.003]
[1721304405442,1.28064195,64890.0,64889.0,0.003]
[1721304407019,1.37308097,64890.0,64889.0,0.003]
[1721304407470,1.37316379,64890.0,64889.0,0.003]
[1721304407736,1.28072741,64890.0,64889.0,0.003]
[1721304407949,1.14777251,64890.0,64889.0,0.003]
[1721304408178,1.24021013,64890.0,64889.0,0.1466]
[1721304408621,1.24021317,64890.0,64889.0,0.1466]
[1721304410687,1.14778178,64890.0,64889.0,0.1466]
[1721304411113,1.26332726,64890.0,64889.0,0.1466]
[1721304411930,1.24023147,64890.0,64889.0,0.1466]
[1721304412411,1.14778178,64890.0,64889.0,0.1466]
[1721304412623,1.2402337,64890.0,64889.0,0.1466]
[1721304412852,1.26332726,64890.0,64889.0,0.1466]
[1721304413067,1.14778178,64890.0,64889.0,0.1466]
[1721304413786,1.14781639,64890.0,64889.0,0.1466]
[1721304414270,1.14781649,64890.0,64889.0,0.1466]
[1721304414700,1.24028593,64890.0,64889.0,0.1466]
[1721304414925,1.26340347,64890.0,64889.0,0.1466]
[1721304416915,1.09574505,64890.0,64889.0,0.1466]
[1721304417151,1.14797962,64890.0,64889.0,0.1466]
[1721304417380,1.26355285,64890.0,64889.0,0.1466]
[1721304419539,1.14797962,64890.0,64889.0,0.1466]
[1721304420440,1.14818632,64890.0,64889.0,0.1466]
[1721304422656,1.14920118,64890.0,64889.0,0.1466]
[1721304424161,1.14920118,64890.0,64889.0,0.0811]
[1721304424397,1.14920118,64890.0,64889.0,0.082013]
[1721304425815,1.14918622,64890.0,64889.0,0.082013]
[1721304426013,1.24167008,64890.0,64889.0,0.082013]
[1721304427138,0.93345708,64890.0,64889.0,0.082013]
[1721304427375,0.001,64890.0,64889.0,0.60484]
[1721304427869,0.001,64890.0,64889.0,1.38614955]
[1721304429909,0.001,64890.0,64889.0,1.50914955]
[1721304430612,0.001,64890.0,64889.0,1.94531746]
[1721304430807,0.00083,64893.0,64892.0,1.078714]
[1721304431023,0.00083,64893.0,64892.0,1.70264565]
[1721304431309,0.00083,64893.0,64892.0,1.71311704]
[1721304431737,0.00083,64893.0,64892.0,2.02132104]
[1721304432163,0.00083,64893.0,64892.0,2.02131182]
[1721304432377,0.00083,64893.0,64892.0,2.12641182]
[1721304432614,0.00083,64893.0,64892.0,2.1264117]
[1721304433459,0.00083,64893.0,64892.0,1.99847113]
[1721304433667,0.00083,64893.0,64892.0,2.00647113]
[1721304434386,0.00083,64897.0,64896.0,1.078647]
[1721304434606,0.00083,64897.0,64896.0,1.59995905]
[1721304434828,0.00083,64897.0,64896.0,1.94949774]
[1721304435040,0.00083,64897.0,64896.0,1.97249774]
[1721304435268,0.00083,64897.0,64896.0,1.84456743]
[1721304435496,0.00083,64897.0,64896.0,1.97249367]
[1721304436822,0.00687768,64898.0,64897.0,1.38681]
[1721304437035,0.00687768,64898.0,64897.0,1.80349174]
[1721304437259,0.00687768,64898.0,64897.0,1.81395403]
[1721304439071,0.00687768,64898.0,64897.0,1.82795403]
[1721304440808,0.00687768,64898.0,64897.0,1.81395403]
[1721304441225,0.00687768,64898.0,64897.0,1.82795403]
[1721304441687,0.00687768,64898.0,64897.0,1.51977403]
[1721304441932,0.00687768,64898.0,64897.0,0.05246229]
[1721304442192,0.00687768,64898.0,64897.0,0.20655229]
[1721304442686,0.00687768,64898.0,64897.0,0.19255229]
[1721304443158,0.00687768,64898.0,64897.0,0.05246229]
[1721304443403,0.46913968,64898.0,64897.0,0.05246229]
[1721304443659,0.77731468,64898.0,64897.0,0.05246229]
[1721304443872,0.77731468,64898.0,64897.0,0.014]
[1721304444331,0.46913968,64898.0,64897.0,0.023]
[1721304444559,0.46913968,64898.0,64897.0,0.009]
[1721304444785,0.46913968,64898.0,64897.0,0.03244692]
[1721304445012,0.46913968,64898.0,64897.0,0.022]
[1721304445257,0.46913968,64898.0,64897.0,0.03244705]
[1721304448867,1.34334015,64898.0,64897.0,0.03244705]
[1721304449325,1.34334015,64898.0,64897.0,0.022]
[1721304450730,0.770532,64890.0,64889.0,0.000913]
[1721304452067,0.308197,64894.0,64890.0,0.0758]
[1721304452345,0.308197,64894.0,64890.0,0.1362]
[1721304452346,0.3082,64893.0,64890.0,0.1362]
[1721304452596,0.3082,64893.0,64891.0,0.01047917]
[1721304453096,0.154102,64892.0,64891.0,0.01047917]
[1721304454689,0.154102,64892.0,64891.0,0.01947917]
[1721304457076,0.154097,64894.0,64891.0,0.01947917]
[1721304457885,0.00687768,64898.0,64891.0,0.01947917]
[1721304458333,0.00687768,64898.0,64891.0,0.01047917]
[1721304458758,0.00687768,64898.0,64891.0,0.01747917]
[1721304458975,0.00687768,64898.0,64893.0,0.154098]
[1721304459310,0.00687768,64898.0,64894.0,0.0104718]
[1721304459513,0.00687768,64898.0,64893.0,0.154098]
[1721304459739,0.00687768,64898.0,64894.0,0.01047059]
[1721304460179,0.00687768,64898.0,64893.0,0.154098]
[1721304460385,0.00687768,64898.0,64895.0,0.01046958]
[1721304460598,0.00687768,64898.0,64894.0,0.17156659]
[1721304460840,0.00687768,64898.0,64896.0,0.01046858]
[1721304461086,0.00687768,64898.0,64895.0,0.01046958]
[1721304461546,0.00687768,64898.0,64895.0,0.16456358]
[1721304462380,0.00687768,64898.0,64896.0,0.002]
[1721304462573,0.00687768,64898.0,64896.0,0.01246858]
[1721304463306,0.00687768,64898.0,64896.0,0.01746858]
[1721304463569,0.00687768,64898.0,64896.0,0.17155958]
[1721304464942,0.00687768,64898.0,64897.0,0.15409]
[1721304465388,0.00687768,64898.0,64897.0,0.16455334]
[1721304465846,0.00687768,64898.0,64897.0,0.92181334]
[1721304466272,0.00687768,64898.0,64897.0,1.22999334]
[1721304466728,0.00687768,64898.0,64897.0,1.23199334]
[1721304466947,0.00687768,64898.0,64897.0,1.39337508]
[1721304467198,0.00687768,64898.0,64897.0,1.49337508]
[1721304467403,0.00687768,64898.0,64897.0,1.48637508]
[1721304467892,0.0002,64903.0,64902.0,1.386702]
[1721304468118,0.0002,64903.0,64902.0,2.24407723]
[1721304468349,0.00835,64914.0,64913.0,1.078364]
[1721304468600,0.00835,64914.0,64913.0,1.80928279]
[1721304470678,0.00835,64914.0,64913.0,1.78628279]
[1721304471158,0.00835,64914.0,64913.0,1.80028279]
[1721304472992,0.00835,64914.0,64913.0,1.79728279]
[1721304473462,0.00835,64914.0,64913.0,1.81128279]
[1721304474162,0.00835,64914.0,64913.0,1.79728279]
[1721304474394,0.00835,64914.0,64913.0,1.21379705]
[1721304475067,0.00835,64914.0,64913.0,0.80569305]
[1721304475971,0.00835,64914.0,64913.0,1.11379705]
[1721304476307,0.00835,64914.0,64913.0,1.09979705]
[1721304476450,0.00835,64914.0,64913.0,1.09779705]
[1721304476925,0.00835,64914.0,64913.0,1.10279705]
[1721304477159,0.00835,64914.0,64913.0,1.09779705]
[1721304477604,0.00835,64914.0,64913.0,1.10279705]
[1721304483061,0.00835,64914.0,64913.0,1.07779705]
[1721304486244,0.00835,64914.0,64913.0,1.68298279]
[1721304490404,0.00835,64914.0,64913.0,1.80598279]
[1721304490646,0.00835,64914.0,64913.0,2.11408679]
[1721304492315,0.00835,64914.0,64913.0,2.27286163]
[1721304492534,0.00835,64914.0,64913.0,2.26386163]
[1721304492769,0.00835,64914.0,64913.0,2.56696563]
[1721304492988,0.00835,64914.0,64913.0,2.63552997]
[1721304493237,0.00835,64914.0,64913.0,2.59496563]
[1721304493456,0.00835,64914.0,64913.0,2.25886163]
[1721304493676,0.00835,64914.0,64913.0,2.27286163]
[1721304493894,0.00835,64914.0,64913.0,2.28686163]
[1721304494128,0.00835,64914.0,64913.0,2.27286163]
[1721304494352,0.00835,64914.0,64913.0,2.28686163]
[1721304494833,0.00835,64914.0,64913.0,2.14496679]
[1721304495060,0.00835,64914.0,64913.0,2.2728538]
[1721304495389,0.00835,64914.0,64913.0,2.2588538]
[1721304495772,0.00835,64914.0,64913.0,2.2728538]
[1721304496023,0.00835,64914.0,64913.0,2.2737668]
[1721304496756,0.00835,64914.0,64913.0,2.2877668]
[1721304497479,0.00835,64914.0,64913.0,1.9796628]
[1721304497711,0.00835,64914.0,64913.0,2.2877668]
[1721304497922,0.00835,64914.0,64913.0,2.28776658]
[1721304498397,0.00835,64914.0,64913.0,2.28776647]
[1721304501142,0.00835,64914.0,64913.0,2.15987979]
[1721304501367,0.00835,64914.0,64913.0,2.28776657]
[1721304504415,0.00835,64914.0,64913.0,2.15987979]
[1721304504666,0.00835,64914.0,64913.0,2.28777284]
[1721304507653,0.00835,64914.0,64913.0,2.28776938]
[1721304508578,0.00835,64914.0,64913.0,2.35776938]
[1721304510642,0.00835,64914.0,64913.0,2.22987979]
[1721304510863,0.00835,64914.0,64913.0,2.35777265]
[1721304514026,0.00835,64914.0,64913.0,2.35777249]
[1721304517212,0.00835,64914.0,64913.0,2.35776935]
[1721304517703,0.00835,64914.0,64913.0,2.35777245]
[1721304523531,0.00835,64914.0,64913.0,2.35776738]
[1721304527142,0.00835,64914.0,64913.0,2.35776707]
[1721304529964,0.00835,64914.0,64913.0,2.3577661]
[1721304532925,0.00835,64914.0,64913.0,2.40352296]
[1721304533373,0.00835,64914.0,64913.0,2.40355192]
[1721304534310,0.00835,64914.0,64913.0,2.3577661]
[1721304535196,0.00835,64914.0,64913.0,2.76793074]
[1721304536348,0.00835,64914.0,64913.0,2.79085444]
[1721304536553,0.00835,64914.0,64913.0,2.96209105]
[1721304536767,0.00835,64914.0,64913.0,2.96208908]
[1721304537464,0.00835,64914.0,64913.0,2.22987979]
[1721304537685,0.00835,64914.0,64913.0,2.96218497]
[1721304538314,0.00835,64914.0,64913.0,2.79085342]
[1721304539681,0.00835,64914.0,64913.0,2.79085765]
[1721304541510,0.00835,64914.0,64913.0,2.69924007]
[1721304541958,0.00835,64914.0,64913.0,2.35776084]
[1721304542210,0.00835,64914.0,64913.0,2.69924008]
[1721304543128,0.00880687,64914.0,64913.0,2.69924008]
[1721304545190,0.00880687,64914.0,64913.0,2.69924006]
[1721304545614,0.00880687,64914.0,64913.0,2.57135902]
[1721304545837,0.00880687,64914.0,64913.0,2.69924006]
[1721304546531,0.00880687,64914.0,64913.0,2.42647618]
[1721304547013,0.00880687,64914.0,64913.0,2.35776083]
[1721304547197,0.00880687,64914.0,64913.0,2.76796038]
[1721304548333,0.00880687,64914.0,64913.0,2.42647731]
[1721304548554,0.00880687,64914.0,64913.0,2.76796214]
[1721304548768,0.00880687,64914.0,64913.0,2.42647731]
[1721304550646,0.00880687,64914.0,64913.0,2.54368931]
[1721304550917,0.00880687,64914.0,64913.0,2.47497493]
[1721304552467,0.00880687,64914.0,64913.0,2.52885493]
[1721304552767,0.00880687,64914.0,64913.0,2.50085493]
[1721304552995,0.00880687,64914.0,64913.0,2.52885493]
[1721304553673,0.00880687,64914.0,64913.0,2.51485493]
[1721304554105,0.00880687,64914.0,64913.0,2.52885493]
[1721304554559,0.00880687,64914.0,64913.0,2.40097179]
[1721304554800,0.00880687,64914.0,64913.0,2.52886942]
[1721304555045,0.00880687,64914.0,64913.0,2.41497179]
[1721304555268,0.00880687,64914.0,64913.0,2.54286942]
[1721304557950,0.00880687,64914.0,64913.0,2.54286941]